fUST/lending_fUST_20240727
["ID","MTS","AMOUNT","RATE_DAILY","PERIOD"]
[333366448,1722073843634,-509.30961225,0.00013698,2]
[333366449,1722073843643,-500.0,0.00013698,2]
[333366450,1722073843654,-500.0,0.00013698,2]
[333366451,1722073843664,-501.81576739,0.00013698,2]
[333366452,1722073843673,-500.0,0.00013698,2]
[333366453,1722073843685,-500.0,0.00013698,2]
[333366454,1722073843697,-500.0,0.00013698,2]
[333366455,1722073843709,-500.0,0.00013698,2]
[333366456,1722073843719,-500.0,0.00013698,2]
[333366457,1722073843728,-500.0,0.00013698,2]
[333366458,1722073843738,-500.0,0.00013698,2]
[333366459,1722073843747,-500.31731059,0.00013698,2]
[333366460,1722073843756,-518.29137302,0.00013698,2]
[333366461,1722073843767,-500.0,0.00013698,2]
[333366462,1722073843776,-501.22329192,0.00013698,2]
[333366463,1722073843785,-500.0,0.00013698,2]
[333366464,1722073843795,-500.0,0.00013698,2]
[333366465,1722073843804,-519.0532503,0.00013698,2]
[333366466,1722073843813,-502.80562634,0.00013698,2]
[333366467,1722073843823,-500.0,0.00013698,2]
[333366468,1722073843834,-500.0,0.00013698,2]
[333366469,1722073843844,-500.0,0.00013698,2]
[333366470,1722073843853,-500.0,0.00013698,2]
[333366471,1722073843862,-500.0,0.00013698,2]
[333366472,1722073843872,-500.0,0.00013698,2]
[333366473,1722073843881,-500.0,0.00013698,2]
[333366474,1722073843890,-500.0,0.00013698,2]
[333366475,1722073843899,-500.0,0.00013698,2]
[333366476,1722073843909,-500.0,0.00013698,2]
[333366477,1722073843918,-500.0,0.00013698,2]
[333366478,1722073843928,-500.0,0.00013698,2]
[333366479,1722073843937,-500.0,0.00013698,2]
[333366480,1722073843946,-500.0,0.00013698,2]
[333366481,1722073843955,-500.0,0.00013698,2]
[333366482,1722073843964,-500.0,0.00013698,2]
[333366483,1722073843974,-500.0,0.00013698,2]
[333366484,1722073843983,-500.0,0.00013698,2]
[333366485,1722073843992,-500.0,0.00013698,2]
[333366486,1722073844005,-500.0,0.00013698,2]
[333366487,1722073844014,-222.77639781,0.00013698,2]
[333366488,1722073844023,-500.0,0.00013698,2]
[333366489,1722073844032,-500.0,0.00013698,2]
[333366490,1722073844042,-509.23,0.00013698,2]
[333366491,1722073844053,-397.69526671,0.00013698,2]
[333366492,1722073844062,-500.0,0.00013698,2]
[333366493,1722073844072,-500.0,0.00013698,2]
[333366494,1722073844082,-500.0,0.00013698,2]
[333366495,1722073844092,-199.26992587,0.00013698,2]
[333366496,1722073844101,-500.0,0.00013698,2]
[333366497,1722073844110,-500.0,0.00013698,2]
[333366498,1722073844120,-507.00078858,0.00013698,2]
[333366499,1722073844130,-500.0,0.00013698,2]
[333366500,1722073844139,-500.0,0.00013698,2]
[333366501,1722073844148,-549.41,0.00013698,2]
[333366502,1722073844157,-500.0,0.00013698,2]
[333366503,1722073844167,-500.0,0.00013698,2]
[333366504,1722073844176,-500.0,0.00013698,2]
[333366505,1722073844186,-619.25,0.00013698,2]
[333366506,1722073844196,-500.0,0.00013698,2]
[333366507,1722073844206,-500.0,0.00013698,2]
[333366508,1722073844215,-503.18,0.00013698,2]
[333366509,1722073844225,-500.0,0.00013698,2]
[333366510,1722073844234,-500.0,0.00013698,2]
[333366511,1722073844244,-500.0,0.00013698,2]
[333366512,1722073844253,-500.0,0.00013698,2]
[333366513,1722073844263,-500.0,0.00013698,2]
[333366514,1722073844272,-500.0,0.00013698,2]
[333366515,1722073844282,-500.0,0.00013698,2]
[333366516,1722073844292,-500.0,0.00013698,2]
[333366517,1722073844301,-500.0,0.00013698,2]
[333366518,1722073844310,-500.0,0.00013698,2]
[333366519,1722073844319,-500.0,0.00013698,2]
[333366520,1722073844328,-500.0,0.00013698,2]
[333366521,1722073844338,-504.77150617,0.00013698,2]
[333366522,1722073844347,-500.0,0.00013698,2]
[333366523,1722073844356,-500.0,0.00013698,2]
[333366524,1722073844366,-500.0,0.00013698,2]
[333366525,1722073844376,-556.41,0.00013698,2]
[333366526,1722073844388,-512.34617721,0.00013698,2]
[333366527,1722073844400,-667.22,0.00013698,2]
[333366528,1722073844412,-500.0,0.00013698,2]
[333366529,1722073844423,-500.0,0.00013698,2]
[333366530,1722073844434,-500.0,0.00013698,2]
[333366531,1722073844445,-505.86005277,0.00013698,2]
[333366532,1722073844457,-625.2,0.00013698,2]
[333366533,1722073844467,-500.0,0.00013698,2]
[333366534,1722073844478,-500.0,0.00013698,2]
[333366535,1722073844487,-500.0,0.00013698,2]
[333366536,1722073844497,-505.32615552,0.00013698,2]
[333366537,1722073844507,-494.42095459,0.00013698,2]
[333366538,1722073844516,-500.0,0.00013698,2]
[333366539,1722073844526,-500.0,0.00013698,2]
[333366540,1722073844535,-500.0,0.00013698,2]
[333366541,1722073844545,-500.0,0.00013698,2]
[333366542,1722073844554,-508.81,0.00013698,2]
[333366543,1722073844564,-500.0,0.00013698,2]
[333366544,1722073844575,-500.0,0.00013698,2]
[333366545,1722073844586,-500.0,0.00013698,2]
[333366546,1722073844597,-797.14,0.00013698,2]
[333366547,1722073844608,-500.0,0.00013698,2]
[333366548,1722073844617,-500.0,0.00013698,2]
[333366549,1722073844627,-500.0,0.00013698,2]
[333366550,1722073844636,-500.0,0.00013698,2]
[333366551,1722073844645,-500.0,0.00013698,2]
[333366552,1722073844655,-500.0,0.00013698,2]
[333366553,1722073844664,-500.0,0.00013698,2]
[333366554,1722073844674,-824.1,0.00013698,2]
[333366555,1722073844684,-500.0,0.00013698,2]
[333366556,1722073844693,-500.0,0.00013698,2]
[333366557,1722073844702,-500.0,0.00013698,2]
[333366558,1722073844712,-500.0,0.00013698,2]
[333366559,1722073844721,-500.0,0.00013698,2]
[333366560,1722073844731,-500.0,0.00013698,2]
[333366561,1722073844741,-669.94,0.00013698,2]
[333366562,1722073844751,-500.0,0.00013698,2]
[333366563,1722073844763,-567.61,0.00013698,2]
[333366564,1722073844772,-500.0,0.00013698,2]
[333366565,1722073844782,-500.0,0.00013698,2]
[333366566,1722073844792,-500.0,0.00013698,2]
[333366567,1722073844802,-461.39425363,0.00013698,2]
[333366568,1722073844811,-500.0,0.00013698,2]
[333366569,1722073844821,-508.21497187,0.00013698,2]
[333366570,1722073844831,-500.0,0.00013698,2]
[333366571,1722073844840,-500.0,0.00013698,2]
[333366572,1722073844850,-505.62531666,0.00013698,2]
[333366573,1722073844859,-500.0,0.00013698,2]
[333366574,1722073844870,-989.68,0.00013698,2]
[333366575,1722073844879,-506.36627106,0.00013698,2]
[333366576,1722073844889,-500.0,0.00013698,2]
[333366577,1722073844898,-500.0,0.00013698,2]
[333366578,1722073844909,-500.0,0.00013698,2]
[333366579,1722073844920,-500.0,0.00013698,2]
[333366580,1722073844931,-500.0,0.00013698,2]
[333366581,1722073844941,-500.0,0.00013698,2]
[333366582,1722073844952,-500.0,0.00013698,2]
[333366583,1722073844963,-500.0,0.00013698,2]
[333366584,1722073844973,-500.0,0.00013698,2]
[333366585,1722073844983,-500.0,0.00013698,2]
[333366586,1722073844994,-500.0,0.00013698,2]
[333366587,1722073845010,-500.0,0.00013698,2]
[333366588,1722073845021,-996.21,0.00013698,2]
[333366589,1722073845033,-500.0,0.00013698,2]
[333366590,1722073845043,-509.55,0.00013698,2]
[333366591,1722073845054,-500.0,0.00013698,2]
[333366592,1722073845065,-500.0,0.00013698,2]
[333366593,1722073845074,-500.0,0.00013698,2]
[333366594,1722073845086,-500.0,0.00013698,2]
[333366595,1722073845095,-500.0,0.00013698,2]
[333366596,1722073845105,-500.0,0.00013698,2]
[333366597,1722073845114,-500.0,0.00013698,2]
[333366598,1722073845124,-500.0,0.00013698,2]
[333366599,1722073845134,-500.0,0.00013698,2]
[333366600,1722073845145,-500.0,0.00013698,2]
[333366601,1722073845156,-515.37747525,0.00013698,2]
[333366602,1722073845166,-510.0011184,0.00013698,2]
[333366603,1722073845176,-500.0,0.00013698,2]
[333366604,1722073845185,-500.0,0.00013698,2]
[333366605,1722073845195,-304.31068045,0.00013698,2]
[333366606,1722073845205,-500.0,0.00013698,2]
[333366607,1722073845214,-500.0,0.00013698,2]
[333366608,1722073845224,-500.0,0.00013698,2]
[333366609,1722073845234,-500.0,0.00013698,2]
[333366610,1722073845245,-500.0,0.00013698,2]
[333366611,1722073845255,-500.0,0.00013698,2]
[333366612,1722073845265,-500.0,0.00013698,2]
[333366613,1722073845275,-500.0,0.00013698,2]
[333366614,1722073845285,-500.0,0.00013698,2]
[333366615,1722073845295,-500.0,0.00013698,2]
[333366616,1722073845304,-500.0,0.00013698,2]
[333366617,1722073845316,-241.05007576,0.00013698,2]
[333366618,1722073845328,-500.0,0.00013698,2]
[333366619,1722073845338,-500.0,0.00013698,2]
[333366620,1722073845349,-506.87116694,0.00013698,2]
[333366621,1722073845358,-500.0,0.00013698,2]
[333366622,1722073845367,-500.0,0.00013698,2]
[333366623,1722073845376,-500.0,0.00013698,2]
[333366624,1722073845385,-500.0,0.00013698,2]
[333366625,1722073845395,-500.0,0.00013698,2]
[333366627,1722073845406,-503.02284734,0.00013698,2]
[333366628,1722073845416,-500.0,0.00013698,2]
[333366629,1722073845426,-500.0,0.00013698,2]
[333366630,1722073845436,-505.45716088,0.00013698,2]
[333366631,1722073845447,-500.0,0.00013698,2]
[333366632,1722073845459,-505.14334552,0.00013698,2]
[333366633,1722073845469,-502.78184778,0.00013698,2]
[333366634,1722073845480,-500.0,0.00013698,2]
[333366635,1722073845492,-500.0,0.00013698,2]
[333366636,1722073845504,-500.0,0.00013698,2]
[333366637,1722073845514,-333.77361333,0.00013698,2]
[333366638,1722073845523,-500.0,0.00013698,2]
[333366639,1722073845533,-443.41683122,0.00013698,2]
[333366640,1722073845543,-628.72928174,0.00013698,2]
[333366641,1722073845552,-500.0,0.00013698,2]
[333366642,1722073845562,-500.0,0.00013698,2]
[333366643,1722073845572,-500.0,0.00013698,2]
[333366644,1722073845582,-500.0,0.00013698,2]
[333366645,1722073845591,-500.0,0.00013698,2]
[333366646,1722073845601,-419.18799702,0.00013698,2]
[333366647,1722073845611,-500.0,0.00013698,2]
[333366648,1722073845620,-698.74,0.00013698,2]
[333366649,1722073845630,-500.0,0.00013698,2]
[333366650,1722073845640,-150.0,0.00013698,2]
[333366651,1722073845649,-500.0,0.00013698,2]
[333366652,1722073845661,-500.0,0.00013698,2]
[333366653,1722073845671,-501.41812093,0.00013698,2]
[333366654,1722073845681,-571.42936053,0.00013698,2]
[333366655,1722073845690,-500.0,0.00013698,2]
[333366656,1722073845700,-3676.01,0.00013698,2]
[333366657,1722073845711,-500.0,0.00013698,2]
[333366658,1722073845721,-500.0,0.00013698,2]
[333366659,1722073845731,-500.0,0.00013698,2]
[333366660,1722073845740,-500.0,0.00013698,2]
[333366661,1722073845751,-500.0,0.00013698,2]
[333366662,1722073845761,-713.36,0.00013698,2]
[333366663,1722073845769,-500.0,0.00013698,2]
[333366664,1722073845779,-500.0,0.00013698,2]
[333366665,1722073845788,-500.0,0.00013698,2]
[333366667,1722073845798,-1640.57,0.00013698,2]
[333366668,1722073845807,-500.0,0.00013698,2]
[333366669,1722073845816,-604.81717721,0.00013698,2]
[333366670,1722073845826,-500.0,0.00013698,2]
[333366671,1722073845835,-876.01,0.00013698,2]
[333366672,1722073845845,-863.3,0.00013698,2]
[333366673,1722073845854,-500.0,0.00013698,2]
[333366674,1722073845865,-500.0,0.00013698,2]
[333366675,1722073845874,-538.05,0.00013698,2]
[333366676,1722073845883,-500.0,0.00013698,2]
[333366677,1722073845893,-501.92660683,0.00013698,2]
[333366678,1722073845903,-1372.23,0.00013698,2]
[333366680,1722073845913,-1895.35,0.00013698,2]
[333366681,1722073845925,-500.0,0.00013698,2]
[333366683,1722073845937,-500.0,0.00013698,2]
[333366685,1722073845947,-500.0,0.00013698,2]
[333366686,1722073845957,-500.0,0.00013698,2]
[333366688,1722073845967,-500.0,0.00013698,2]
[333366690,1722073845976,-500.0,0.00013698,2]
[333366691,1722073845985,-500.0,0.00013698,2]
[333366692,1722073845996,-500.0,0.00013698,2]
[333366693,1722073846012,-500.0,0.00013698,2]
[333366694,1722073846023,-500.0,0.00013698,2]
[333366695,1722073846033,-500.0,0.00013698,2]
[333366696,1722073846045,-500.0,0.00013698,2]
[333366697,1722073846055,-500.0,0.00013698,2]
[333366698,1722073846064,-500.0,0.00013698,2]
[333366699,1722073846075,-6837.59,0.00013698,2]
[333366700,1722073846084,-500.0,0.00013698,2]
[333366701,1722073846094,-500.0,0.00013698,2]
[333366702,1722073846104,-614.67,0.00013698,2]
[333366703,1722073846114,-545.20733261,0.00013698,2]
[333366704,1722073846123,-500.0,0.00013698,2]
[333366705,1722073846133,-674.63,0.00013698,2]
[333366706,1722073846143,-2709.53,0.00013698,2]
[333366707,1722073846154,-500.0,0.00013698,2]
[333366708,1722073846164,-518.68,0.00013698,2]
[333366709,1722073846174,-500.0,0.00013698,2]
[333366710,1722073846183,-505.28259137,0.00013698,2]
[333366711,1722073846193,-500.0,0.00013698,2]
[333366712,1722073846202,-500.0,0.00013698,2]
[333366713,1722073846213,-500.0,0.00013698,2]
[333366714,1722073846222,-1227.7,0.00013698,2]
[333366715,1722073846232,-500.0,0.00013698,2]
[333366716,1722073846242,-1521.86,0.00013698,2]
[333366717,1722073846251,-500.0,0.00013698,2]
[333366718,1722073846262,-500.0,0.00013698,2]
[333366719,1722073846272,-500.0,0.00013698,2]
[333366720,1722073846282,-500.0,0.00013698,2]
[333366721,1722073846292,-508.5780443,0.00013698,2]
[333366722,1722073846301,-500.0,0.00013698,2]
[333366723,1722073846312,-1165.0,0.00013698,2]
[333366724,1722073846322,-668.76,0.00013698,2]
[333366725,1722073846332,-500.0,0.00013698,2]
[333366726,1722073846341,-500.0,0.00013698,2]
[333366727,1722073846351,-1192.02,0.00013698,2]
[333366728,1722073846360,-500.0,0.00013698,2]
[333366730,1722073846369,-500.0,0.00013698,2]
[333366731,1722073846378,-841.91,0.00013698,2]
[333366732,1722073846388,-500.0,0.00013698,2]
[333366733,1722073846400,-500.0,0.00013698,2]
[333366734,1722073846412,-500.0,0.00013698,2]
[333366735,1722073846423,-500.0,0.00013698,2]
[333366736,1722073846435,-500.0,0.00013698,2]
[333366737,1722073846447,-500.0,0.00013698,2]
[333366738,1722073846458,-511.8009732,0.00013698,2]
[333366739,1722073846468,-500.0,0.00013698,2]
[333366740,1722073846477,-500.0,0.00013698,2]
[333366741,1722073846487,-500.0,0.00013698,2]
[333366742,1722073846497,-500.0,0.00013698,2]
[333366743,1722073846506,-500.0,0.00013698,2]
[333366744,1722073846515,-4559.68,0.00013698,2]
[333366745,1722073846524,-500.0,0.00013698,2]
[333366746,1722073846534,-530.84,0.00013698,2]
[333366747,1722073846543,-500.0,0.00013698,2]
[333366748,1722073846552,-500.0,0.00013698,2]
[333366749,1722073846561,-500.0,0.00013698,2]
[333366750,1722073846571,-500.0,0.00013698,2]
[333366751,1722073846581,-500.0,0.00013698,2]
[333366752,1722073846591,-500.0,0.00013698,2]
[333366753,1722073846600,-500.0,0.00013698,2]
[333366754,1722073846610,-2457.26,0.00013698,2]
[333366755,1722073846619,-559.48,0.00013698,2]
[333366756,1722073846640,-831.64,0.00013698,2]
[333366757,1722073846650,-500.0,0.00013698,2]
[333366758,1722073846660,-500.0,0.00013698,2]
[333366759,1722073846671,-1125.81,0.00013698,2]
[333366760,1722073846681,-500.0,0.00013698,2]
[333366761,1722073846691,-500.0,0.00013698,2]
[333366762,1722073846701,-500.0,0.00013698,2]
[333366763,1722073846710,-500.0,0.00013698,2]
[333366764,1722073846720,-724.21,0.00013698,2]
[333366765,1722073846729,-877.71,0.00013698,2]
[333366766,1722073846739,-500.0,0.00013698,2]
[333366767,1722073846750,-500.0,0.00013698,2]
[333366768,1722073846761,-500.0,0.00013698,2]
[333366769,1722073846771,-586.18,0.00013698,2]
[333366770,1722073846780,-500.0,0.00013698,2]
[333366771,1722073846790,-500.0,0.00013698,2]
[333366772,1722073846799,-500.0,0.00013698,2]
[333366773,1722073846809,-500.0,0.00013698,2]
[333366774,1722073846818,-1649.33,0.00013698,2]
[333366775,1722073846828,-500.0,0.00013698,2]
[333366776,1722073846838,-500.0,0.00013698,2]
[333366777,1722073846849,-500.0,0.00013698,2]
[333366778,1722073846860,-500.0,0.00013698,2]
[333366779,1722073846871,-500.0,0.00013698,2]
[333366780,1722073846882,-500.0,0.00013698,2]
[333366781,1722073846893,-500.0,0.00013698,2]
[333366782,1722073846903,-500.0,0.00013698,2]
[333366783,1722073846913,-514.81847764,0.00013698,2]
[333366784,1722073846924,-500.0,0.00013698,2]
[333366785,1722073846934,-500.0,0.00013698,2]
[333366786,1722073846944,-500.0,0.00013698,2]
[333366787,1722073846955,-1121.92,0.00013698,2]
[333366788,1722073846967,-796.55,0.00013698,2]
[333366789,1722073846976,-571.46808504,0.00013698,2]
[333366790,1722073846986,-500.0,0.00013698,2]
[333366791,1722073846996,-625.42,0.00013698,2]
[333366792,1722073847010,-988.79,0.00013698,2]
[333366793,1722073847019,-500.0,0.00013698,2]
[333366794,1722073847028,-502.62402367,0.00013698,2]
[333366795,1722073847037,-500.0,0.00013698,2]
[333366796,1722073847048,-500.0,0.00013698,2]
[333366797,1722073847058,-500.0,0.00013698,2]
[333366798,1722073847068,-500.0,0.00013698,2]
[333366799,1722073847078,-973.53,0.00013698,2]
[333366800,1722073847088,-500.0,0.00013698,2]
[333366801,1722073847098,-526.98226081,0.00013698,2]
[333366802,1722073847107,-500.0,0.00013698,2]
[333366803,1722073847117,-500.0,0.00013698,2]
[333366804,1722073847127,-500.0,0.00013698,2]
[333366805,1722073847137,-637.13,0.00013698,2]
[333366806,1722073847147,-500.0,0.00013698,2]
[333366807,1722073847156,-500.0,0.00013698,2]
[333366808,1722073847166,-1490.56,0.00013698,2]
[333366809,1722073847175,-411.37612143,0.00013698,2]
[333366810,1722073847185,-500.0,0.00013698,2]
[333366811,1722073847194,-506.29,0.00013698,2]
[333366812,1722073847204,-500.0,0.00013698,2]
[333366813,1722073847213,-1528.11,0.00013698,2]
[333366814,1722073847223,-500.0,0.00013698,2]
[333366815,1722073847232,-2386.11,0.00013698,2]
[333366816,1722073847242,-500.0,0.00013698,2]
[333366817,1722073847252,-500.0,0.00013698,2]
[333366818,1722073847262,-500.0,0.00013698,2]
[333366819,1722073847272,-1102.02,0.00013698,2]
[333366820,1722073847281,-1405.99,0.00013698,2]
[333366821,1722073847292,-1891.74,0.00013698,2]
[333366822,1722073847303,-150.86392025,0.00013698,2]
[333366823,1722073847314,-500.0,0.00013698,2]
[333366824,1722073847324,-500.0,0.00013698,2]
[333366825,1722073847335,-500.0,0.00013698,2]
[333366826,1722073847345,-500.0,0.00013698,2]
[333366827,1722073847356,-368.76171746,0.00013698,2]
[333366828,1722073847366,-500.0,0.00013698,2]
[333366829,1722073847375,-216.59394487,0.00013698,2]
[333366830,1722073847385,-500.0,0.00013698,2]
[333366831,1722073847396,-500.0,0.00013698,2]
[333366832,1722073847407,-500.0,0.00013698,2]
[333366833,1722073847417,-500.0,0.00013698,2]
[333366834,1722073847426,-500.0,0.00013698,2]
[333366835,1722073847437,-500.0,0.00013698,2]
[333366836,1722073847448,-500.0,0.00013698,2]
[333366837,1722073847459,-500.0,0.00013698,2]
[333366838,1722073847468,-500.0,0.00013698,2]
[333366839,1722073847477,-500.0,0.00013698,2]
[333366840,1722073847486,-500.0,0.00013698,2]
[333366841,1722073847496,-500.0,0.00013698,2]
[333366842,1722073847506,-500.0,0.00013698,2]
[333366843,1722073847516,-500.0,0.00013698,2]
[333366844,1722073847525,-500.0,0.00013698,2]
[333366845,1722073847536,-472.01,0.00013698,2]
[333366846,1722073847545,-500.0,0.00013698,2]
[333366847,1722073847556,-500.0,0.00013698,2]
[333366848,1722073847566,-500.0,0.00013698,2]
[333366849,1722073847576,-383.980272,0.00013699,2]
[333366850,1722073847586,-186.4486332,0.00013699,2]
[333366851,1722073847595,-150.112233,0.000137,2]
[333366852,1722073847605,-722.9791341,0.0001373,2]
[333366853,1722073847779,-150.112233,0.000138,2]
[333366854,1722073847789,-722.9791341,0.00013801,2]
[333366855,1722073847799,-722.9791341,0.00013872,2]
[333366856,1722073847808,-29048.4514072,0.00013962,2]
[333366857,1722073847818,-29048.4514072,0.00013962,2]
[333366858,1722073847827,-500.0,0.00013972,2]
[333366859,1722073847837,-500.0,0.00013972,2]
[333366860,1722073847847,-500.0,0.00013972,2]
[333366861,1722073847856,-500.0,0.00013972,2]
[333366862,1722073847866,-52.53153862,0.00013972,2]
[333366863,1722073848097,-456.69846138,0.00013972,2]
[333366864,1722073848107,-201.47045653,0.00013972,2]
[333366865,1722073848286,165.42397432,0.0001212,2]
[333366866,1722073907652,20.77633263,9.999e-05,2]
[333366867,1722073908086,195.23593255,9.999e-05,2]
[333366868,1722073908111,596.99546176,9.999e-05,2]
[333366871,1722073992671,813.00772694,9.999e-05,2]
[333366872,1722074006151,273.37336231,9.9e-05,2]
[333366873,1722074017976,1305.57129431,9.999e-05,2]
[333366874,1722074082663,813.00772694,9.999e-05,2]
[333366875,1722074118991,4679.03335492,9.999e-05,2]
[333366876,1722074122668,2964.92328943,9.999e-05,2]
[333366880,1722074304064,197.88738864,9.999e-05,2]
[333366881,1722074401806,-300.0,0.00012075,2]
[333366882,1722074403357,-300.0,0.00012075,2]
[333366883,1722074407160,-1591.2097527,0.00012076,2]
[333366884,1722074409068,154.68290005,9.999e-05,2]
[333366885,1722074411792,-23308.7902473,0.00012076,2]
[333366886,1722074412465,-301.49698578,0.0001212,2]
[333366887,1722074418599,-183.371034,0.00012046,2]
[333366888,1722074420427,-183.371034,0.0001212,2]
[333366889,1722074421215,-118.12595178,0.0001212,2]
[333366890,1722074421243,-65.24508222,0.00012172,2]
[333366891,1722074421940,-118.12595178,0.00012172,2]
[333366892,1722074421966,-65.24508222,0.00012297,2]
[333366893,1722074422938,-118.12595178,0.00012297,2]
[333366894,1722074422962,-65.24508222,0.00012423,2]
[333366895,1722074434502,-13318.62206268,0.00012999,5]
[333366896,1722074438185,-43907.8389372,0.00012999,5]
[333366899,1722074500576,154.68290005,9.999e-05,2]
[333366900,1722074589700,154.68290005,9.999e-05,2]
[333366901,1722074673028,200.0,0.0001,2]
[333366902,1722074699581,154.68290005,9.999e-05,2]
[333366903,1722074708622,180.26595097,9.999e-05,2]
[333366904,1722074712680,154.68290005,9.999e-05,2]
[333366905,1722074719644,404.47935249,9.999e-05,2]
[333366906,1722074720267,803.95416911,0.0001,2]
[333366907,1722074723096,155.72742978,9.999e-05,2]
[333366908,1722074726448,188.10567749,9.999e-05,2]
[333366909,1722074727968,196.33497966,9.999e-05,2]
[333366910,1722074729598,154.68290005,9.999e-05,2]
[333366911,1722074735977,217.53565664,9.999e-05,2]
[333366912,1722074741157,-194.01305999,0.00012119,2]
[333366913,1722074743145,200.0,0.0001,2]
[333366914,1722074744515,323.93313452,9.999e-05,2]
[333366915,1722074745905,193.90661985,9.999e-05,2]
[333366916,1722074753569,154.69833824,9.999e-05,2]
[333366917,1722074758407,154.68290005,9.999e-05,2]
[333366918,1722074802881,200.0,0.0001,2]
[333366919,1722074815694,276.54437551,9.999e-05,2]
[333366920,1722074833246,375.76915132,9.999e-05,2]
[333366921,1722074839100,-263.90630492,0.00011754,2]
[333366922,1722074843084,-36.09369508,0.00011754,2]
[333366923,1722074843105,-217.78992705,0.00011754,2]
[333366924,1722074844090,-82.21007295,0.00011754,2]
[333366925,1722074844114,-422.645915,0.00011755,2]
[333366926,1722074845453,188.10567749,9.999e-05,2]
[333366927,1722074845919,154.88370439,9.999e-05,2]
[333366928,1722074846730,154.68290005,9.999e-05,2]
[333366929,1722074850156,-1423.20890856,0.00011755,2]
[333366930,1722074873753,277.66440512,9.999e-05,2]
[333366931,1722074945109,-249.450142,0.00011725,2]
[333366932,1722074945130,-300.0,0.00011754,2]
[333366933,1722074945152,-23054.14517644,0.00011755,2]
[333366934,1722074945174,-249.450142,0.00011757,2]
[333366935,1722074945200,-249.450142,0.00011789,2]
[333366936,1722074945224,-249.450142,0.00011821,2]
[333366937,1722074945249,-249.450142,0.00011853,2]
[333366938,1722074945273,-249.450142,0.00011885,2]
[333366939,1722074945295,-249.450142,0.00011918,2]
[333366940,1722074945318,-249.450142,0.0001195,2]
[333366941,1722074945339,-249.450142,0.00011982,2]
[333366942,1722074945363,-249.450142,0.00012014,2]
[333366943,1722074945385,-249.450142,0.00012046,2]
[333366944,1722074945412,-249.450142,0.00012078,2]
[333366945,1722074945434,-249.450142,0.00012111,2]
[333366946,1722074945457,-4500.0,0.00012118,2]
[333366947,1722074945478,-511.51074116,0.0001212,2]
[333366948,1722074945507,-249.450142,0.00012143,2]
[333366949,1722074945530,-249.450142,0.00012175,2]
[333366950,1722074945552,-249.450142,0.00012207,2]
[333366951,1722074945574,-249.450142,0.00012239,2]
[333366952,1722074945598,-249.450142,0.00012271,2]
[333366953,1722074945621,-249.450142,0.00012304,2]
[333366954,1722074945643,-218.49434474,0.00012336,2]
[333366955,1722074946878,170.045239,9.999e-05,2]
[333366956,1722074946909,38.58208079,9.999e-05,2]
[333366957,1722074949595,171.56633397,9.999e-05,2]
[333366959,1722074965757,13.86506975,9.999e-05,2]
[333366960,1722074965778,151.55890457,9.999e-05,2]
[333366961,1722074984835,98.44109543,0.0001212,2]
[333367041,1722075038192,-56.34993668,0.0001212,2]
[333367043,1722075038204,-30.95579726,0.00012336,2]